bitfinex/quotes_SOLUSD_20241209
["timestamp","ask_amount","ask_price","bid_price","bid_amount"]
[1733756128653,0.5252676,231.41,231.34,0.12549]
[1733756129267,0.5252676,231.41,231.32,0.12549]
[1733756129772,0.5252676,231.41,231.31,13.50481071]
[1733756129958,0.5252676,231.41,231.32,0.12549]
[1733756130135,0.5252676,231.41,231.32,0.60576021]
[1733756130337,0.5252676,231.41,231.34,0.12549]
[1733756130536,0.5252676,231.41,231.34,0.6054455]
[1733756130756,0.5252676,231.41,231.36,0.12549]
[1733756131784,0.5252676,231.41,231.4,13.63030071]
[1733756131982,0.5252676,231.41,231.4,13.75579071]
[1733756132264,0.5252676,231.41,231.4,0.12549]
[1733756133135,0.5252676,231.41,231.35,13.98439049]
[1733756133370,0.5252676,231.41,231.35,13.50481071]
[1733756133565,0.5252676,231.41,231.35,0.12549]
[1733756133770,0.5252676,231.41,231.35,0.25098]
[1733756134070,0.5252676,231.41,231.35,13.63030071]
[1733756134373,0.5252676,231.41,231.38,0.12549]
[1733756134871,0.5252676,231.41,231.36,0.12549]
[1733756135036,0.5252676,231.41,231.31,13.50481071]
[1733756135264,1.5024,231.4,231.29,13.50481071]
[1733756135460,1.5024,231.4,231.32,0.12549]
[1733756135724,1.5024,231.4,231.34,0.12549]
[1733756135891,0.5252676,231.41,231.35,0.12549]
[1733756136099,0.5252676,231.41,231.37,0.12549]
[1733756136402,0.5252676,231.41,231.37,13.63030071]
[1733756137199,0.5252676,231.41,231.39,0.12549]
[1733756137408,0.5252676,231.41,231.4,13.75579071]
[1733756138003,0.5252676,231.41,231.4,0.12549]
[1733756138305,0.5252676,231.41,231.4,14.23550309]
[1733756138467,0.3998676,231.41,231.4,51.00238709]
[1733756138883,0.3998676,231.41,231.4,27.22550309]
[1733756139786,0.3998676,231.41,231.4,51.00238709]
[1733756140307,1.5977,231.56,231.43,0.12549]
[1733756140493,1.5977,231.56,231.46,0.25098]
[1733756140697,1.5977,231.56,231.46,13.75579071]
[1733756141098,0.167,231.55,231.46,13.75579071]
[1733756141409,0.97676333,231.55,231.44,13.50481071]
[1733756141709,20.97676333,231.55,231.44,13.50481071]
[1733756142076,20.97676333,231.55,231.39,13.98399433]
[1733756142377,20.0,231.51,231.36,13.50481071]
[1733756142572,0.81004986,231.5,231.37,13.50481071]
[1733756142771,0.81004986,231.5,231.38,13.50481071]
[1733756143011,0.167,231.53,231.44,13.50481071]
[1733756143211,0.167,231.53,231.45,0.12549]
[1733756143505,0.167,231.53,231.45,0.60470699]
[1733756143885,0.167,231.53,231.42,13.50481071]
[1733756144080,0.167,231.53,231.43,13.75579071]
[1733756144296,0.167,231.53,231.45,0.12549]
[1733756144608,0.167,231.53,231.45,13.75579071]
[1733756144987,0.167,231.53,231.48,0.12549]
[1733756145789,0.167,231.53,231.46,0.25098]
[1733756146213,0.167,231.53,231.46,0.12549]
[1733756146529,0.167,231.53,231.45,0.12549]
[1733756146530,0.167,231.53,231.48,0.12549]
[1733756147314,0.167,231.53,231.47,0.25098]
[1733756147521,0.167,231.53,231.47,13.75579071]
[1733756147683,0.167,231.53,231.49,0.25098]
[1733756147878,0.167,231.53,231.49,13.75579071]
[1733756148893,0.167,231.53,231.49,0.25098]
[1733756149595,0.167,231.53,231.49,13.75579071]
[1733756150909,0.167,231.53,231.51,0.25098]
[1733756151917,0.167,231.53,231.51,13.75579071]
[1733756152320,0.167,231.53,231.51,0.12549]
[1733756152497,0.167,231.53,231.51,13.50481071]
[1733756153513,0.167,231.53,231.52,0.12549]
[1733756154218,0.167,231.53,231.52,14.10917901]
[1733756154524,0.167,231.53,231.52,14.23466901]
[1733756158330,0.167,231.53,231.52,27.22466901]
[1733756159632,0.167,231.53,231.52,14.23466901]
[1733756161511,0.167,231.53,231.52,0.7298583]
[1733756161713,0.167,231.53,231.52,13.63030071]
[1733756161913,0.167,231.53,231.52,13.75579071]
[1733756162229,0.167,231.53,231.52,13.63030071]
[1733756162814,0.167,231.53,231.52,13.75579071]
[1733756165421,0.167,231.53,231.52,26.74579071]
[1733756165610,0.167,231.53,231.52,27.22442324]
[1733756166417,0.167,231.53,231.52,14.23442324]
[1733756167131,0.167,231.53,231.52,13.75579071]
[1733756168838,0.167,231.53,231.52,0.25098]
[1733756169142,0.167,231.53,231.52,13.75579071]
[1733756170140,0.167,231.53,231.52,14.23455236]
[1733756170513,0.167,231.53,231.52,27.22455236]
[1733756170717,0.167,231.53,231.52,43.02275236]
[1733756170929,0.5252676,231.64,231.6,0.25098]
[1733756171121,0.5252676,231.64,231.63,13.63030071]
[1733756171416,0.5252676,231.64,231.63,14.10829442]
[1733756172056,0.5252676,231.64,231.63,14.23378442]
[1733756172221,0.5252676,231.64,231.63,13.75579071]
[1733756172420,0.5252676,231.64,231.63,0.12549]
[1733756173351,0.5252676,231.64,231.63,0.25098]
[1733756173649,0.5252676,231.64,231.63,0.72906198]
[1733756175561,0.5252676,231.64,231.59,13.50481071]
[1733756175850,0.5252676,231.64,231.6,0.12549]
[1733756176573,0.5252676,231.64,231.61,0.47831524]
[1733756176728,0.5252676,231.64,231.55,13.98314447]
[1733756176926,0.155,231.63,231.55,13.98314447]
[1733756177561,1.778,231.63,231.56,13.50481071]
[1733756177758,1.778,231.63,231.56,0.12549]
[1733756177941,1.778,231.63,231.58,13.63030071]
[1733756178141,1.778,231.63,231.58,0.25098]
[1733756178328,1.778,231.63,231.52,12.99]
[1733756178329,1.778,231.63,231.55,13.50481071]
[1733756178859,1.778,231.63,231.56,13.63030071]
[1733756179660,1.778,231.63,231.57,13.98336903]
[1733756180261,0.155,231.63,231.62,13.75579071]
[1733756180436,0.155,231.63,231.62,27.22358222]
[1733756181039,0.155,231.63,231.62,14.23358222]
[1733756182233,0.155,231.63,231.62,13.75579071]
[1733756183974,0.155,231.63,231.62,0.12549]
[1733756184168,0.155,231.63,231.62,14.23388515]
[1733756185234,0.155,231.63,231.6,13.50481071]
[1733756185435,0.155,231.63,231.59,0.47809183]
[1733756185653,0.155,231.63,231.6,13.50481071]
[1733756185973,0.155,231.63,231.62,13.50481071]
[1733756186146,0.155,231.63,231.62,13.63030071]
[1733756186946,0.155,231.63,231.62,13.75579071]
[1733756187876,0.155,231.63,231.62,13.63030071]
[1733756188733,0.155,231.63,231.62,13.50481071]
[1733756189164,0.6802676,231.65,231.62,13.50481071]
[1733756189729,0.6802676,231.65,231.63,13.50481071]
[1733756189930,0.6802676,231.65,231.64,13.50481071]
[1733756193649,0.6802676,231.65,231.61,0.47808331]
[1733756193650,0.6802676,231.65,231.62,0.12549]
[1733756193856,0.6802676,231.65,231.62,13.63030071]
[1733756194278,0.6802676,231.65,231.62,0.12549]
[1733756194449,0.6802676,231.65,231.61,13.50481071]
[1733756195251,0.6802676,231.65,231.54,12.99]
[1733756195252,20.0,231.59,231.38,13.50481071]
[1733756195451,20.0,231.59,231.47,26.0733305]
[1733756195748,20.0,231.59,231.43,12.99]
[1733756196053,20.0,231.59,231.44,36.29480893]
[1733756196264,20.0,231.59,231.44,12.99]
[1733756196265,0.8096824,231.58,231.44,12.99]
[1733756196474,0.8096824,231.58,231.42,13.50481071]
[1733756196475,0.8096824,231.58,231.4,12.99]
[1733756196787,0.8096824,231.58,231.41,0.12549]
[1733756197093,0.8096824,231.58,231.4,12.99]
[1733756197455,0.8096824,231.58,231.38,12.99]
[1733756197675,1.8891824,231.58,231.38,26.49481071]
[1733756198254,1.8891824,231.58,231.36,13.50481071]
[1733756198454,20.0,231.57,231.36,13.50481071]
[1733756198804,0.81000968,231.56,231.42,13.50481071]
[1733756198967,0.80978611,231.56,231.43,0.12549]
[1733756199473,0.80978611,231.56,231.43,0.25098]
[1733756200205,0.80982705,231.58,231.43,0.25098]
[1733756201469,0.80976379,231.58,231.46,0.12549]
[1733756201665,8.0992,231.62,231.43,13.63030071]
[1733756201666,0.80974475,231.61,231.43,13.63030071]
[1733756201999,0.80974475,231.61,231.46,0.12549]
[1733756202160,8.0992,231.62,231.53,13.50481071]
[1733756202364,8.0992,231.62,231.58,13.50481071]
[1733756202670,0.6802676,231.65,231.6,13.50481071]
[1733756202867,0.6802676,231.65,231.62,13.50481071]
[1733756204001,1.727613,231.83,231.74,5.12549]
[1733756204213,0.5252676,231.87,231.82,13.50481071]
[1733756204362,0.5252676,231.87,231.85,13.50481071]
[1733756205396,0.5252676,231.87,231.86,21.56182595]
[1733756206008,0.5252676,231.87,231.86,21.68731595]
[1733756207885,0.5252676,231.87,231.86,0.12549]
[1733756208485,0.5252676,231.87,231.86,21.56182595]
[1733756208695,0.5252676,231.87,231.86,21.68731595]
[1733756211116,0.5252676,231.87,231.7,5.0]
[1733756211316,0.5252676,231.87,231.78,21.43633595]
[1733756212183,0.5252676,231.87,231.65,5.0]
[1733756212417,0.5252676,231.87,231.68,21.43633595]
[1733756212581,0.80882316,231.86,231.68,21.43633595]
[1733756212976,0.80882316,231.86,231.69,0.12549]
[1733756213412,0.80882316,231.86,231.65,5.0]
[1733756213611,0.80882316,231.86,231.69,21.43633595]
[1733756213918,0.80882316,231.86,231.7,0.25098]
[1733756214121,0.80882316,231.86,231.7,0.12549]
[1733756214495,0.80882316,231.86,231.69,21.43633595]
[1733756214824,0.80882316,231.86,231.7,0.12549]
[1733756215718,0.80882316,231.86,231.7,0.25098]
[1733756216022,1.592,231.85,231.68,20.0]
[1733756216314,0.80892094,231.84,231.69,0.12549]
[1733756216518,0.80892094,231.84,231.68,20.0]
[1733756216721,0.80892094,231.84,231.69,0.12549]
[1733756217500,20.0,231.83,231.68,0.12549]
[1733756217753,0.80897681,231.82,231.63,21.43633595]
[1733756218222,0.80897681,231.82,231.65,21.43633595]
[1733756218814,20.0,231.79,231.66,0.12549]
[1733756219122,0.8091028,231.78,231.66,0.12549]
[1733756219329,0.8091028,231.78,231.64,0.25098]
[1733756220192,20.0,231.76,231.58,21.43633595]
[1733756220408,0.80921757,231.75,231.58,21.43633595]
[1733756220600,0.80921757,231.75,231.59,0.12549]
[1733756221002,0.80921757,231.75,231.61,0.12549]
[1733756221191,0.80921757,231.75,231.6,21.43633595]
[1733756221524,0.80921757,231.75,231.53,12.99]
[1733756221525,2.1575,231.74,231.53,12.99]
[1733756221707,0.80928972,231.73,231.57,21.43633595]
[1733756222838,0.80928972,231.73,231.58,0.25098]
[1733756223731,20.80928972,231.73,231.58,0.25098]
[1733756225268,0.80928972,231.73,231.6,0.25098]
[1733756226140,0.80928972,231.73,231.6,0.12549]
[1733756226320,0.80928972,231.73,231.58,0.25098]
[1733756226519,20.80928972,231.73,231.58,0.25098]
[1733756227121,1.5087,231.71,231.56,0.12549]
[1733756227460,20.0,231.68,231.49,21.43633595]
[1733756227741,0.80949164,231.7,231.55,21.43633595]
[1733756228116,1.5087,231.71,231.58,0.12549]
[1733756228317,1.5087,231.71,231.53,0.12549]
[1733756228644,0.80926132,231.7,231.57,0.12549]
[1733756228843,2.31801756,231.71,231.59,0.25098]
[1733756229083,1.5087,231.71,231.63,0.25098]
[1733756229873,1.5087,231.71,231.61,0.25098]
[1733756230166,0.80915163,231.7,231.57,0.12549]
[1733756230465,2.31802658,231.71,231.57,0.12549]
[1733756230834,2.31802658,231.71,231.57,0.25098]
[1733756231037,2.31802658,231.71,231.57,0.12549]
[1733756231238,2.1579,231.7,231.54,21.43633595]
[1733756231470,0.8093995,231.69,231.54,21.43633595]
[1733756231642,2.31807799,231.71,231.57,0.12549]
[1733756232341,2.31807799,231.71,231.57,0.25098]
[1733756233834,2.31807799,231.71,231.57,0.12549]
[1733756234035,2.31807799,231.71,231.55,0.25098]
[1733756234643,2.31807799,231.71,231.57,0.12549]
[1733756234974,2.31807799,231.71,231.57,0.25098]
[1733756235335,2.31807799,231.71,231.55,0.25098]
[1733756235868,20.0,231.69,231.52,21.43633595]
[1733756236059,0.80948229,231.68,231.52,21.43633595]
[1733756236451,0.80948229,231.68,231.54,21.43633595]
[1733756236660,20.0,231.69,231.54,21.43633595]
[1733756236860,4.47602937,231.71,231.55,0.12549]
[1733756237088,4.47602937,231.71,231.57,0.12549]
[1733756237089,1.5087,231.71,231.57,0.12549]
[1733756237384,1.5087,231.71,231.61,0.12549]
[1733756237556,1.5087,231.71,231.61,0.25098]
[1733756238173,0.80919718,231.8,231.68,21.43633595]
[1733756238484,0.80877962,231.85,231.71,0.12549]
[1733756238685,0.80877962,231.85,231.71,0.25098]
[1733756238885,2.96527962,231.85,231.71,0.12549]
[1733756239674,20.0,231.83,231.67,0.12549]
[1733756239882,2.1569,231.81,231.65,0.12549]
[1733756240772,0.80907572,231.8,231.65,0.25098]
[1733756240974,0.80907572,231.8,231.65,0.12549]
[1733756241181,0.80907572,231.8,231.65,0.25098]
[1733756241360,20.80907572,231.8,231.64,21.43633595]
[1733756241558,20.0,231.79,231.64,21.43633595]
[1733756241755,8.1015,231.77,231.58,20.0]
[1733756242073,8.1015,231.77,231.61,21.43633595]
[1733756242074,20.0,231.74,231.61,21.43633595]
[1733756242267,0.80923541,231.73,231.61,21.43633595]
[1733756242589,0.80923541,231.73,231.49,5.0]
[1733756242590,20.0,231.72,231.57,21.43633595]
[1733756242915,0.80940007,231.71,231.57,21.43633595]
[1733756243898,0.80940007,231.71,231.58,0.12549]
[1733756244465,1.88830007,231.71,231.58,0.12549]
[1733756245486,1.5312,231.69,231.56,0.25098]
[1733756245786,0.80944505,231.68,231.56,0.25098]
[1733756245995,6.0074,231.67,231.53,21.43633595]
[1733756246168,0.80951551,231.66,231.53,21.43633595]
[1733756246771,1.0792,231.65,231.53,21.43633595]
[1733756247073,0.80961587,231.64,231.53,21.43633595]
[1733756247278,0.80961587,231.64,231.49,21.43633595]
[1733756247474,0.80961587,231.64,231.5,0.12549]
[1733756247790,0.80961587,231.64,231.49,21.43633595]
[1733756248305,1.0793,231.63,231.5,0.12549]
[1733756248597,8.1343,231.61,231.5,0.12549]
[1733756248764,8.1343,231.61,231.53,21.43633595]
[1733756248972,8.1343,231.61,231.54,0.25098]
[1733756249976,8.1343,231.61,231.55,21.43633595]
[1733756250164,1.5966,231.61,231.58,0.12549]
[1733756250584,6.5728,231.66,231.6,0.25098]
[1733756250764,1.6361,231.67,231.63,0.25098]
[1733756250971,6.5728,231.72,231.63,0.25098]
[1733756252068,0.80920656,231.71,231.6,21.43633595]
[1733756252272,0.80920656,231.71,231.61,0.12549]
[1733756252692,8.46100393,231.72,231.61,0.25098]
[1733756253295,8.46100393,231.72,231.63,0.12549]
[1733756253574,6.5728,231.72,231.63,0.12549]
[1733756253776,6.5728,231.72,231.65,0.12549]
[1733756254203,7.38199537,231.72,231.65,0.12549]
[1733756254391,7.38199537,231.72,231.6,0.12549]
[1733756254700,7.38199537,231.72,231.6,0.25098]
[1733756255073,0.80934926,231.76,231.64,0.12549]
[1733756255280,0.80934926,231.76,231.64,0.25098]
[1733756255677,1.0787,231.75,231.64,0.12549]
[1733756255883,0.80928465,231.74,231.62,0.25098]
[1733756256204,20.0,231.7,231.54,21.43633595]
[1733756256389,0.80947554,231.69,231.54,21.43633595]
[1733756256772,0.80947554,231.69,231.56,21.43633595]
[1733756257200,0.80947554,231.69,231.58,21.43633595]
[1733756257403,20.0,231.7,231.59,0.12549]
[1733756257584,0.8093633,231.72,231.59,0.12549]
[1733756257777,8.44132787,231.73,231.61,0.25098]
[1733756257999,7.632,231.73,231.62,21.43633595]
[1733756258173,7.632,231.73,231.63,0.12549]
[1733756259108,0.80923839,231.72,231.63,0.12549]
[1733756259282,0.80923839,231.72,231.61,0.25098]
[1733756259488,7.632,231.73,231.63,0.12549]
[1733756259687,7.632,231.73,231.65,0.25098]
[1733756260287,7.632,231.73,231.63,0.25098]
[1733756260780,0.80916395,231.72,231.61,0.12549]
[1733756260981,0.80916395,231.72,231.48,12.99]
[1733756261195,0.80916395,231.72,231.54,21.43633595]
[1733756261397,20.0,231.7,231.54,21.43633595]
[1733756261683,1.079,231.68,231.54,21.43633595]
[1733756261882,12.632,231.73,231.48,12.99]
[1733756261883,0.80948775,231.71,231.59,0.12549]
[1733756262907,0.80932483,231.72,231.59,0.25098]
[1733756263412,1.88822483,231.72,231.59,0.25098]
[1733756265914,7.632,231.73,231.61,0.25098]
[1733756267086,7.632,231.73,231.63,0.25098]
[1733756267892,7.632,231.73,231.65,0.25098]
[1733756269231,7.632,231.73,231.63,0.25098]
[1733756270587,7.632,231.73,231.61,0.25098]
[1733756271010,0.80923828,231.72,231.61,0.12549]
[1733756271215,0.80923828,231.72,231.59,0.12549]
[1733756271403,0.80923828,231.72,231.61,0.25098]
[1733756271609,8.7108,231.73,231.62,21.43633595]
[1733756271821,8.7108,231.73,231.63,0.12549]
[1733756272916,0.80922747,231.72,231.63,0.12549]
[1733756273097,8.7108,231.73,231.63,0.12549]
[1733756274330,7.632,231.73,231.63,0.12549]
[1733756274527,0.8092253,231.72,231.63,0.12549]
[1733756274730,7.632,231.73,231.63,0.12549]
[1733756275606,7.59557796,231.73,231.63,0.12549]
[1733756277126,7.59557796,231.73,231.61,0.25098]
[1733756277342,7.59557796,231.73,231.61,13.67874566]
[1733756277497,0.80921985,231.72,231.61,13.67874566]
[1733756277696,0.80926058,231.72,231.61,13.67874566]
[1733756278300,7.59557796,231.73,231.61,13.67874566]
[1733756278506,0.80925119,231.72,231.61,13.67874566]
[1733756280232,0.80925119,231.72,231.61,0.25098]
[1733756280399,7.59557796,231.73,231.66,0.12549]
[1733756281615,0.80919066,231.81,231.56,5.40026488]
[1733756281616,6.6322,231.77,231.71,13.42776566]
[1733756283038,1.5537,231.79,231.76,13.42776566]
[1733756283250,6.1777,231.83,231.79,0.12549]
[1733756283460,1.6014,231.85,231.79,0.12549]
[1733756284100,1.6014,231.85,231.83,13.42776566]
[1733756284303,0.5252676,231.87,231.84,13.42776566]
[1733756284504,0.5252676,231.87,231.85,13.42776566]
[1733756285445,0.5252676,231.87,231.85,21.44099538]
[1733756285826,0.5252676,231.87,231.86,21.56648538]
[1733756286210,0.5252676,231.87,231.86,0.12549]
[1733756286623,0.5252676,231.87,231.86,21.69197538]
[1733756287043,0.5252676,231.87,231.86,21.56648538]
[1733756287420,0.5252676,231.87,231.71,5.40026488]
[1733756287627,6.4795,231.85,231.72,21.44099538]
[1733756287822,0.80889947,231.84,231.72,21.44099538]
[1733756288442,7.28839587,231.85,231.72,21.44099538]
[1733756288643,7.28839587,231.85,231.74,21.44099538]
[1733756289028,7.28828737,231.85,231.74,21.44099538]
[1733756289338,1.0783,231.84,231.72,21.44099538]
[1733756289512,0.80891778,231.83,231.69,21.44099538]
[1733756290037,0.80891778,231.83,231.6,27.77649538]
[1733756290038,0.80891778,231.83,231.67,21.44099538]
[1733756290723,20.0,231.82,231.67,21.44099538]
[1733756290926,20.0,231.8,231.65,21.44099538]
[1733756291236,0.80909703,231.79,231.65,21.44099538]
[1733756291911,0.80909703,231.79,231.67,21.44099538]
[1733756292110,0.80905286,231.81,231.69,21.44099538]
[1733756292813,0.80905286,231.81,231.7,0.12549]
[1733756293148,0.80905286,231.81,231.69,0.12549]
[1733756294741,1.0785,231.8,231.68,0.12549]
[1733756295039,0.80905051,231.79,231.68,21.56648538]
[1733756295211,0.80905051,231.79,231.68,0.12549]
[1733756295541,0.80901463,231.79,231.68,0.12549]
[1733756295710,0.80901463,231.79,231.67,0.12549]
[1733756295913,0.80901463,231.79,231.66,0.12549]
[1733756296119,1.0786,231.78,231.66,0.12549]
[1733756296332,20.80921259,231.77,231.61,21.44099538]
[1733756296520,1.512,231.76,231.6,21.44099538]
[1733756296744,0.80926945,231.75,231.59,21.44099538]
[1733756297051,6.5076,231.74,231.61,0.12549]
[1733756297227,0.80926952,231.73,231.59,21.44099538]
[1733756297423,1.0788,231.72,231.48,5.0]
[1733756297634,0.80940933,231.71,231.56,21.44099538]
[1733756297825,20.80940933,231.71,231.56,21.44099538]
[1733756298439,20.80940933,231.71,231.57,0.12549]
[1733756298745,20.80940933,231.71,231.57,0.25098]
[1733756299135,20.80940933,231.71,231.56,21.44099538]
[1733756299335,1.0789,231.7,231.54,21.44099538]
[1733756299653,0.80949713,231.69,231.53,21.44099538]
[1733756300017,23.776884,231.68,231.54,21.44099538]
[1733756300246,0.80949758,231.67,231.54,21.44099538]
[1733756300820,0.80949758,231.67,231.5,0.12549]
[1733756300821,23.776884,231.65,231.5,0.12549]
[1733756301121,23.776884,231.63,231.42,21.44099538]
[1733756301318,0.80972455,231.62,231.42,21.44099538]
[1733756301633,23.776884,231.61,231.42,21.44099538]
[1733756301832,23.776884,231.59,231.42,21.44099538]
[1733756302141,0.80977744,231.58,231.42,21.44099538]
[1733756302529,23.776884,231.57,231.39,20.0]
[1733756302719,28.776884,231.55,231.34,21.44099538]
[1733756302924,23.776884,231.53,231.34,21.44099538]
[1733756303158,23.776884,231.51,231.34,21.44099538]
[1733756303443,0.81008971,231.5,231.32,21.44099538]
[1733756303618,0.81008971,231.5,231.33,0.12549]
[1733756303826,0.81008971,231.5,231.32,21.44099538]
[1733756304020,0.81008971,231.5,231.33,23.902374]
[1733756304936,1.0798,231.52,231.37,0.25098]
[1733756305134,0.80998624,231.52,231.37,0.25098]
[1733756305347,23.776884,231.54,231.37,0.25098]
[1733756305639,0.80998863,231.53,231.37,0.25098]
[1733756306253,0.80998863,231.53,231.39,0.25098]
[1733756307040,8.1138,231.56,231.39,0.25098]
[1733756307041,0.81000616,231.55,231.39,0.25098]
[1733756307247,23.776884,231.54,231.39,0.25098]
[1733756307452,0.8099663,231.53,231.39,0.25098]
[1733756307757,8.1138,231.56,231.42,0.12549]
[1733756307936,0.80985453,231.55,231.42,0.12549]
[1733756308370,0.80985453,231.55,231.41,0.25098]
[1733756308827,8.1138,231.56,231.43,0.25098]
[1733756309431,8.1138,231.56,231.46,0.25098]
[1733756310169,0.80982334,231.55,231.46,0.12549]
[1733756310467,23.776884,231.54,231.35,21.44099538]
[1733756310770,23.776884,231.52,231.33,21.44099538]
[1733756310970,23.776884,231.52,231.29,10.8088]
[1733756310971,23.776884,231.5,231.31,21.44099538]
[1733756311274,23.776884,231.5,231.24,21.44099538]
[1733756311275,23.776884,231.46,231.29,21.44099538]
[1733756311561,23.776884,231.44,231.29,21.44099538]
[1733756311765,0.81030954,231.43,231.31,21.44099538]
[1733756312132,0.81030954,231.43,231.27,21.44099538]
[1733756312642,0.81030954,231.43,231.3,20.0]
[1733756313834,0.81030954,231.43,231.3,0.12549]
[1733756314462,0.81030954,231.43,231.3,0.25098]
[1733756316070,23.776884,231.42,231.3,0.12549]
[1733756316244,0.81044094,231.41,231.3,0.12549]
[1733756316752,23.776884,231.43,231.3,0.25098]
[1733756317065,0.81031405,231.42,231.3,0.25098]
[1733756318154,8.2943,231.41,231.3,0.25098]
[1733756318457,0.81035937,231.4,231.3,0.25098]
[1733756318663,0.81035937,231.4,231.3,0.12549]
[1733756318833,0.81035937,231.4,231.27,41.44099538]
[1733756318834,0.81035937,231.4,231.29,21.44099538]
[1733756319040,0.81035937,231.4,231.3,0.12549]
[1733756320374,0.81035937,231.4,231.28,0.12549]
[1733756323161,23.776884,231.39,231.26,0.12549]
[1733756323366,0.81056824,231.38,231.26,0.12549]
[1733756324152,0.81056824,231.38,231.27,21.44099538]
[1733756324340,0.81049451,231.4,231.28,0.12549]
[1733756324547,0.81049451,231.4,231.3,0.12549]
[1733756325072,8.2943,231.41,231.3,0.12549]
[1733756325073,8.2943,231.41,231.32,0.12549]
[1733756326641,8.2943,231.41,231.32,0.25098]
[1733756326846,8.2943,231.41,231.32,0.12549]
[1733756327041,8.2943,231.41,231.34,0.25098]
[1733756327846,8.2943,231.41,231.35,13.46306751]
[1733756328041,8.2943,231.41,231.34,0.12549]
[1733756328042,7.9249,231.47,231.38,0.25098]
[1733756328244,7.9249,231.47,231.42,0.12549]
[1733756328987,1.5018,231.47,231.42,0.12549]
[1733756329164,1.5018,231.47,231.4,0.25098]
[1733756330446,1.5018,231.47,231.4,0.12549]
[1733756330952,0.81010908,231.46,231.37,21.52540617]
[1733756331149,0.81010908,231.46,231.31,6.514]
[1733756331150,0.81010908,231.46,231.36,0.12549]
[1733756331577,2.31195472,231.47,231.36,0.12549]
[1733756332052,2.31195472,231.47,231.35,21.52540617]
[1733756332383,2.31195472,231.47,231.36,0.12549]
[1733756332549,0.81018142,231.46,231.36,0.12549]
[1733756332877,0.81018142,231.46,231.27,12.8123]
[1733756332878,1.89028142,231.46,231.33,0.12549]
[1733756333170,1.89028142,231.46,231.3,21.52540617]
[1733756333378,1.89028142,231.46,231.31,0.12549]
[1733756333752,1.89028142,231.46,231.3,21.52540617]
[1733756335297,1.89028142,231.46,231.31,0.12549]
[1733756335786,1.89028142,231.46,231.32,21.52540617]
[1733756335962,1.89028142,231.46,231.37,0.12549]
[1733756335963,0.81018142,231.46,231.37,0.12549]
[1733756336667,1.5018,231.47,231.36,21.52540617]
[1733756336866,0.81018027,231.45,231.34,21.52540617]
[1733756337170,0.81018027,231.45,231.35,0.12549]
[1733756337793,0.81020707,231.46,231.35,0.12549]
[1733756338797,6.6131,231.45,231.22,14.71721557]
[1733756339001,1.6621,231.43,231.2,15.8127]
[1733756339171,0.81052445,231.42,231.25,21.52540617]
[1733756339488,0.81052445,231.42,231.26,0.12549]
[1733756339892,0.81052445,231.42,231.25,21.52540617]
[1733756340191,1.0803,231.41,231.25,21.52540617]
[1733756340390,20.0,231.35,231.1,28.11998]
[1733756340581,1.5632,231.33,231.17,21.52540617]
[1733756340781,0.81080841,231.32,231.17,21.52540617]
[1733756341459,1.89150841,231.32,231.18,0.12549]
[1733756341689,1.89150841,231.32,231.17,21.52540617]
[1733756342402,1.89150841,231.32,231.18,0.12549]
[1733756342567,6.1095,231.31,231.15,21.52540617]
[1733756342860,1.89170503,231.3,231.15,21.52540617]
[1733756343367,23.776884,231.27,231.06,2.25367512]
[1733756343573,6.226,231.25,231.06,0.5252676]
[1733756343880,0.81110801,231.24,231.09,21.52540617]
[1733756344479,1.89220801,231.24,231.09,21.52540617]
[1733756344993,1.89220801,231.24,231.1,0.12549]
[1733756345198,1.89220801,231.24,231.09,21.52540617]
[1733756345702,1.89220801,231.24,231.1,0.12549]
[1733756345866,0.81110801,231.24,231.14,24.027864]
[1733756346395,0.81110801,231.24,231.13,21.52540617]
[1733756346396,0.81092843,231.24,231.16,24.027864]
[1733756347279,0.81092843,231.24,231.14,23.776884]
[1733756347892,0.81092843,231.24,231.15,0.25098]
[1733756348100,6.226,231.25,231.16,23.776884]
[1733756348397,6.226,231.25,231.2,23.776884]
[1733756348902,6.226,231.25,231.21,0.12549]
[1733756349400,6.226,231.25,231.2,23.776884]
[1733756350200,6.226,231.25,231.17,21.52540617]